lending/lending_fUSD_20240206
["ID","MTS","AMOUNT","RATE_DAILY","PERIOD"]
[313354609,1707222643338,-26526.34884086,0.00022998,2]
[313354610,1707222643348,-2000.0,0.00022998,2]
[313354611,1707222643358,-200.0,0.00022998,2]
[313354612,1707222643367,-200.0,0.00022998,2]
[313354613,1707222643378,-164.37360104,0.00022999,2]
[313354614,1707222643390,-500.0,0.00022999,2]
[313354615,1707222643400,-546.35360146,0.00022999,2]
[313354616,1707222643410,-534.0,0.00023,2]
[313354617,1707222643420,-34320.87534537,0.00023,3]
[313354620,1707222643431,-955.59576504,0.00023,3]
[313354623,1707222646180,-2537.8175,0.00022896,2]
[313354624,1707222646190,-727.19317411,0.00022997,2]
[313354625,1707222646199,-13221.61404632,0.00023,3]
[313354626,1707222646235,-406.55548508,0.00023,3]
[313354627,1707222646248,-784.50318454,0.00023,3]
[313354628,1707222646260,-7351.74604712,0.00023,3]
[313354629,1707222646271,-686.0,0.00023,3]
[313354630,1707222646282,-10712.5,0.00023,3]
[313354632,1707222704378,1812.06513757,0.00021846,2]
[313354633,1707222738683,167.41,0.00022364,2]
[313354634,1707222765772,200.6536,0.00022414,2]
[313354635,1707222814448,368.337341,0.00022427,2]
[313354636,1707222896744,178.4,0.00020023,2]
[313354637,1707222914556,1000.0,0.00021938,2]
[313354638,1707223076937,427.54,0.00021927,2]
[313354639,1707223139821,176.99,0.00022,2]
[313354640,1707223165519,250.0,0.00022,2]
[313354641,1707223166804,250.0,0.00022274,2]
[313354642,1707223335912,841.09,0.00021886,2]
[313354643,1707223364830,150.0,0.00022,2]
[313354644,1707223368545,150.0,0.00022,2]
[313354645,1707223409044,23879.22,0.00021881,2]
[313354646,1707223410917,174.7,0.00019963,2]
[313354647,1707223507645,356.28,0.00021864,2]
[313354651,1707223713759,207.0,0.00022005,2]
[313354652,1707223772517,307.11407965,0.00022,2]
[313354658,1707223832206,-282.27883657,0.0002254,2]
[313354659,1707223832223,-757.04294283,0.0002254,2]
[313354660,1707223832233,-1039.67707476,0.0002254,2]
[313354661,1707223832243,-722.81,0.0002254,2]
[313354662,1707223832252,-527.43759215,0.0002254,2]
[313354663,1707223832265,-208.47240785,0.0002254,2]
[313354664,1707223832275,-150.77298008,0.00022548,2]
[313354665,1707223832284,-400.0,0.000226,8]
[313354666,1707223832294,-625.90252472,0.00022666,2]
[313354667,1707223832304,-800.0,0.000227,8]
[313354668,1707223832313,-1245.85374561,0.00022713,2]
[313354669,1707223832323,-150.0,0.00022763,2]
[313354670,1707223832333,-6577.38,0.00022764,2]
[313354671,1707223832343,-2305.26,0.00022764,2]
[313354672,1707223832353,-636.35834174,0.00022764,2]
[313354673,1707223832376,-836.25302294,0.00022764,2]
[313354674,1707223832398,-5226.28863532,0.00022764,2]
[313354675,1707223832408,-2553.71136468,0.00022764,2]
[313354676,1707223832437,-438.92725827,0.00022764,2]
[313354677,1707223832446,-1658.07,0.00022765,2]
[313354678,1707223832455,-6087.6224922,0.00022766,2]
[313354679,1707223832472,-2080.9895942,0.00022766,2]
[313354682,1707223832496,-26688.51283752,0.00022766,2]
[313354684,1707223832508,-11364.32702419,0.00022766,2]
[313354690,1707223832777,800.0,0.0002192,2]
[313354698,1707223838177,-29251.72106613,0.00022766,2]
[313354699,1707223838186,-24202.64688615,0.00022767,2]
[313354700,1707223838195,-11406.40444443,0.00022768,2]
[313354701,1707223838204,-625.90252472,0.00022798,2]
[313354702,1707223838213,-399.4542,0.00022798,2]
[313354703,1707223838222,-1452.3769862,0.000228,2]
[313354704,1707223838231,-1200.0,0.000228,8]
[313354705,1707223838239,-500.0,0.00022885,2]
[313354706,1707223838248,-500.0,0.00022885,2]
[313354707,1707223838257,-500.0,0.00022885,2]
[313354708,1707223838266,-281.7488,0.00022885,2]
[313354709,1707223838275,-1000.0,0.00022885,2]
[313354710,1707223838284,-1000.0,0.00022885,2]
[313354711,1707223838293,-1000.0,0.00022885,2]
[313354712,1707223838302,-423.3719,0.00022885,2]
[313354713,1707223838311,-45548.3911458,0.00022898,2]
[313354714,1707223838369,-690.84238113,0.00022898,2]
[313354715,1707223838494,-2455.47928863,0.00022898,2]
[313354716,1707223838507,-441.15079611,0.00022898,2]
[313354717,1707223838518,-32774.86517106,0.00022898,2]
[313354802,1707223840751,-517.13849937,0.00022898,2]
[313354803,1707223840764,-1286.505,0.00022898,2]
[313354804,1707223840777,-499.99741118,0.00022898,2]
[313354805,1707223840834,-14120.31841016,0.00022898,2]
[313354806,1707223840911,-350.83879261,0.00022898,2]
[313354807,1707223841036,-597.60997935,0.00022898,2]
[313354808,1707223841050,-4624.72613187,0.00022898,2]
[313354809,1707223841064,-7340.09942089,0.00022898,2]
[313354810,1707223841750,-15318.46427184,0.00022898,2]
[313354812,1707223841760,-8282.126,0.000229,2]
[313354813,1707223841774,-417.47,0.000229,2]
[313354814,1707223841783,-417.47,0.000229,2]
[313354815,1707223841792,-936.76,0.000229,2]
[313354816,1707223841802,-396.59,0.000229,2]
[313354817,1707223841811,-417.47,0.000229,2]
[313354818,1707223841820,-414.17,0.000229,2]
[313354820,1707223841830,-417.47,0.000229,2]
[313354822,1707223841839,-432.6,0.000229,2]
[313354823,1707223841849,-208.51,0.000229,2]
[313354824,1707223841858,-420.83,0.000229,2]
[313354825,1707223841867,-267.27,0.000229,2]
[313354826,1707223841875,-153.53,0.000229,2]
[313354827,1707223841885,-417.47,0.000229,2]
[313354829,1707223841895,-394.55,0.000229,2]
[313354830,1707223841904,-420.83,0.000229,2]
[313354831,1707223841913,-301.99,0.000229,2]
[313354832,1707223841922,-312.26,0.000229,2]
[313354833,1707223841931,-164.54,0.000229,2]
[313354834,1707223841941,-404.0,0.000229,2]
[313354835,1707223841950,-150.0,0.000229,2]
[313354836,1707223841959,-150.0,0.000229,2]
[313354837,1707223841968,-417.47,0.000229,2]
[313354838,1707223841977,-805.04,0.000229,2]
[313354839,1707223841986,-150.0,0.000229,2]
[313354840,1707223841995,-417.47,0.000229,2]
[313354841,1707223842004,-420.83,0.000229,2]
[313354842,1707223842013,-150.0,0.000229,2]
[313354843,1707223842022,-150.0,0.000229,2]
[313354844,1707223842031,-161.16,0.000229,2]
[313354845,1707223842040,-150.0,0.000229,2]
[313354846,1707223842049,-150.0,0.000229,2]
[313354847,1707223842058,-417.47,0.000229,2]
[313354848,1707223842067,-354.25,0.000229,2]
[313354849,1707223842075,-417.47,0.000229,2]
[313354850,1707223842084,-150.0,0.000229,2]
[313354851,1707223842093,-150.0,0.000229,2]
[313354852,1707223842102,-150.0,0.000229,2]
[313354853,1707223842111,-150.0,0.000229,2]
[313354854,1707223842121,-150.0,0.000229,2]
[313354855,1707223842133,-419.98,0.000229,2]
[313354856,1707223842143,-279.84,0.000229,2]
[313354857,1707223842152,-417.47,0.000229,2]
[313354858,1707223842161,-168.32412907,0.000229,2]
[313354859,1707223842170,-853.53,0.000229,2]
[313354860,1707223842179,-153.5,0.000229,2]
[313354861,1707223842189,-150.0,0.000229,2]
[313354862,1707223842198,-150.0,0.000229,2]
[313354863,1707223842207,-417.47,0.000229,2]
[313354864,1707223842216,-417.47,0.000229,2]
[313354865,1707223842225,-417.47,0.000229,2]
[313354866,1707223842234,-150.0,0.000229,2]
[313354867,1707223842243,-417.47,0.000229,2]
[313354868,1707223842253,-417.47,0.000229,2]
[313354869,1707223842262,-5000.0,0.000229,2]
[313354870,1707223842272,-417.47,0.000229,2]
[313354871,1707223842280,-417.47,0.000229,2]
[313354872,1707223842289,-3678.03828957,0.000229,2]
[313354873,1707223842298,-946.34,0.000229,2]
[313354874,1707223842307,-403.88,0.000229,2]
[313354875,1707223842316,-843.69,0.000229,2]
[313354876,1707223842325,-290.54640156,0.000229,2]
[313354877,1707223842334,-946.34,0.000229,2]
[313354878,1707223842343,-403.88,0.000229,2]
[313354879,1707223842352,-572.06558058,0.000229,2]
[313354880,1707223842361,-523.80102283,0.000229,2]
[313354881,1707223842370,-313.3,0.000229,2]
[313354882,1707223842379,-451.4182337,0.000229,6]
[313354883,1707223842389,-1600.0,0.000229,8]
[313354884,1707223842398,-518.74646327,0.00022992,3]
[313354885,1707223842407,-2279.0,0.00022992,2]
[313354886,1707223842417,-19758.0,0.00022992,2]
[313354887,1707223842426,-326.563,0.00022992,2]
[313354888,1707223842435,-2702.958,0.00022992,2]
[313354889,1707223842445,-1031.0,0.00022992,2]
[313354890,1707223842454,-531.15,0.00022996,2]
[313354891,1707223842463,-581.97994428,0.00022998,2]
[313354892,1707223842473,-2622.23902497,0.00022998,2]
[313354893,1707223842577,-2066.8194661,0.00022998,2]
[313354894,1707223842586,-484.79544941,0.00022999,2]
[313354895,1707223842596,-1000.0,0.00022999,2]
[313354896,1707223842606,-6637.9864163,0.00023,3]
[313354897,1707223842619,-59371.09456011,0.00023,3]
[313354911,1707223843346,-7025.08701131,0.00023,3]
[313354912,1707223843359,-2655.44425823,0.00023,3]
[313354913,1707223843371,-3245.68714176,0.00023,3]
[313354914,1707223843443,-9350.48553595,0.00023,3]
[313354915,1707223843455,-952.50238484,0.00023,3]
[313354949,1707223846246,-323.19696627,0.00022999,2]
[313354950,1707223846255,-21039.30303373,0.00023,3]
[313354963,1707223846383,-489.81560544,0.00023,3]
[313354967,1707223846462,-3516.05122468,0.00023,3]
[313354968,1707223846473,-1014.6063418,0.00023,3]
[313354969,1707223846485,-4413.66917011,0.00023,3]
[313354970,1707223846497,-18252.05260372,0.00023,3]
[313354978,1707224011103,473.14,0.00022027,2]
[313354979,1707224049510,151.15,0.00020109,2]
[313354980,1707224090666,150.29,0.00022044,2]
[313354981,1707224158719,2000.0,0.00022004,2]
[313354982,1707224224780,157.86,0.00022191,2]
[313354983,1707224250231,840.87,0.00022152,2]
[313354984,1707224335780,164026.952288,0.00027,30]
[313354985,1707224458957,394.28,0.00022041,2]
[313354986,1707224465676,150.0,0.00022,2]
[313354987,1707224493293,151.15,0.00020123,2]
[313354988,1707224499619,1045.84108994,0.00022497,2]
[313354989,1707224655599,157.86,0.00022222,2]
[313354990,1707224712297,23890.0,0.00022069,2]
[313354991,1707224735116,640.0,0.00022043,2]
[313354992,1707224870594,12052.72220284,0.00022043,2]
[313354993,1707224888591,3610.14423587,0.00022043,2]
[313354994,1707224888615,8442.57796697,0.00022043,2]
[313354996,1707224908599,12052.72220284,0.00022043,2]
[313354997,1707224928605,12052.72220284,0.00022043,2]
[313354998,1707224940109,328.56,0.0002201,2]
[313354999,1707224946599,12052.72220284,0.00022043,2]
[313355000,1707224962602,7945.86070577,0.00022043,2]
[313355001,1707224973059,151.15,0.0002011,2]
[313355017,1707225032318,-507.98984303,0.00022539,2]
[313355018,1707225032367,-366.31007052,0.00022539,2]
[313355019,1707225032377,-1148.37151863,0.0002254,2]
[313355020,1707225032386,-276.9818,0.00022664,2]
[313355021,1707225032395,-156.39298887,0.00022799,2]
[313355022,1707225032405,-156.39298887,0.00022813,2]
[313355023,1707225032414,-156.39298887,0.00022828,2]
[313355024,1707225032423,-156.39298887,0.00022842,2]
[313355025,1707225032433,-156.39298887,0.00022857,2]
[313355026,1707225032442,-156.39298887,0.00022871,2]
[313355027,1707225032452,-156.39298887,0.00022886,2]
[313355028,1707225032462,-201.99882704,0.00022899,2]
[313355029,1707225032471,-3321.9791,0.000229,2]
[313355030,1707225032482,-1000.0,0.000229,2]
[313355031,1707225032491,-1149.50704372,0.000229,2]
[313355032,1707225032503,-896.46176977,0.000229,2]
[313355033,1707225032515,-891.135301,0.000229,2]
[313355034,1707225032525,-821.43732617,0.000229,2]
[313355035,1707225032537,-965.39069473,0.000229,2]
[313355036,1707225032548,-2157.0331791,0.000229,2]
[313355037,1707225032558,-156.39298887,0.000229,2]
[313355038,1707225032568,-5000.0,0.000229,2]
[313355039,1707225032577,-222.86235963,0.000229,2]
[313355040,1707225032586,-5263.7114724,0.000229,2]
[313355041,1707225032598,-1125.25406603,0.000229,2]
[313355042,1707225032610,-314.19872509,0.000229,2]
[313355043,1707225032627,-1310.44076232,0.000229,2]
[313355044,1707225032636,-1325.25533721,0.000229,2]
[313355045,1707225032648,-29662.15509333,0.000229,2]
[313355046,1707225032657,-191.53328661,0.000229,2]
[313355047,1707225032666,-454.58881846,0.000229,2]
[313355048,1707225032675,-1338.34546699,0.000229,2]
[313355050,1707225032684,-400.25350454,0.000229,6]
[313355051,1707225032692,-150.1,0.00022992,3]
[313355052,1707225032702,-707.791,0.00022992,2]
[313355053,1707225032711,-219.258,0.00022992,2]
[313355054,1707225032720,-929.1,0.00022992,2]
[313355055,1707225032729,-1223.0,0.00022992,2]
[313355056,1707225032738,-954.25059585,0.00022998,2]
[313355057,1707225032747,-207.80245874,0.00022998,2]
[313355058,1707225032757,-160.80106563,0.00022998,2]
[313355059,1707225032766,-988.0854597,0.00022998,2]
[313355060,1707225032775,-16638.27486833,0.00022998,2]
[313355061,1707225032787,-898.38723224,0.00022998,2]
[313355062,1707225033180,-514.09738186,0.00022998,2]
[313355074,1707225040911,-248.21325918,0.000229,2]
[313355075,1707225040921,-43.22138264,0.00022998,2]
[313355076,1707225040937,-24.95613483,0.00022998,2]
[313355077,1707225040948,-397.13886518,0.00022998,2]
[313355078,1707225040964,-265.1286,0.00022998,2]
[313355079,1707225040980,-251.96241439,0.00022998,2]
[313355080,1707225041027,-851.14048,0.00022998,2]
[313355081,1707225041039,-833.39634718,0.00022998,2]
[313355082,1707225041200,-762.4416218,0.00022998,2]
[313355101,1707225043626,-557.670181,0.00022998,2]
[313355102,1707225043648,-656.99056597,0.00022998,2]
[313355103,1707225043670,-4293.32870058,0.00022998,2]
[313355104,1707225043679,-2271.2710223,0.00022998,2]
[313355105,1707225043690,-1103.1185545,0.00022998,2]
[313355106,1707225043700,-323.19696628,0.00022999,2]
[313355107,1707225043709,-500.0,0.00022999,2]
[313355108,1707225043719,-500.0,0.00022999,2]
[313355109,1707225043728,-500.0,0.00022999,2]
[313355110,1707225043737,-500.0,0.00022999,2]
[313355112,1707225043747,-382.19226809,0.00022999,2]
[313355114,1707225043756,-113.41048827,0.00022999,2]
[313355297,1707225046346,-393.46815147,0.00022539,2]
[313355298,1707225046402,-307.23702988,0.00022539,2]
[313355299,1707225046413,-897.31553628,0.00022539,2]
[313355300,1707225046514,-254.70119536,0.00022539,2]
[313355301,1707225046530,-27.13875419,0.00022539,2]
[313355302,1707225046540,-323.73437124,0.00022999,2]
[313355303,1707225046549,-500.0,0.00022999,2]
[313355304,1707225046559,-500.0,0.00022999,2]
[313355305,1707225046568,-500.0,0.00022999,2]
[313355306,1707225046578,-500.0,0.00022999,2]
[313355307,1707225046587,-500.0,0.00022999,2]
[313355308,1707225046596,-500.0,0.00022999,2]
[313355309,1707225046606,-500.0,0.00022999,2]
[313355310,1707225046615,-500.0,0.00022999,2]
[313355311,1707225046624,-500.0,0.00022999,2]
[313355312,1707225046633,-500.0,0.00022999,2]
[313355313,1707225046642,-500.0,0.00022999,2]
[313355314,1707225046651,-500.0,0.00022999,2]
[313355315,1707225046662,-500.0,0.00022999,2]
[313355316,1707225046671,-640.43212447,0.00022999,2]
[313355317,1707225046680,-500.0,0.00022999,2]
[313355318,1707225046689,-500.0,0.00022999,2]
[313355320,1707225046699,-307.09749582,0.00022999,2]
[313355322,1707225046708,-286.60001432,0.00022999,2]
[313355324,1707225046718,-451.11985711,0.00022999,2]
[313355326,1707225046727,-500.0,0.00022999,2]
[313355328,1707225046736,-492.89908576,0.00022999,2]
[313355330,1707225046746,-500.0,0.00022999,2]
[313355332,1707225046755,-500.0,0.00022999,2]
[313355334,1707225046764,-500.0,0.00022999,2]
[313355336,1707225046774,-500.0,0.00022999,2]
[313355338,1707225046783,-500.0,0.00022999,2]
[313355340,1707225046792,-500.0,0.00022999,2]
[313355342,1707225046801,-500.0,0.00022999,2]
[313355345,1707225046810,-500.0,0.00022999,2]
[313355348,1707225046819,-500.0,0.00022999,2]
[313355350,1707225046828,-500.0,0.00022999,2]
[313355352,1707225046837,-500.0,0.00022999,2]
[313355354,1707225046846,-500.0,0.00022999,2]
[313355356,1707225046855,-500.0,0.00022999,2]
[313355358,1707225046864,-500.0,0.00022999,2]
[313355360,1707225046874,-499.99999999,0.00022999,2]
[313355362,1707225046882,-443.19166782,0.00022999,2]
[313355364,1707225046891,-500.0,0.00022999,2]
[313355366,1707225046901,-500.0,0.00022999,2]
[313355369,1707225046911,-150.1,0.00023,3]
[313355371,1707225046920,-527.0,0.00023,2]
[313355373,1707225046929,-63209.09500389,0.00023,3]
[313355374,1707225046941,-82202.9582302,0.00023,3]
[313355375,1707225046952,-44192.28742584,0.00023,3]
[313355376,1707225046961,-115609.17932416,0.00023,2]
[313355377,1707225046974,-307.17934042,0.00023,2]
[313355378,1707225046985,-2262.23594659,0.00023,2]
[313355379,1707225046997,-521.93838146,0.00023,2]
[313355380,1707225047009,-12880.73103886,0.00023,2]
[313355381,1707225047034,-11199.0,0.00023,2]
[313355382,1707225047051,-12629.63750827,0.00023,2]
[313355383,1707225326936,-672.69,0.00022557,2]
[313355384,1707225435480,273.8,0.00022109,2]
[313355385,1707225440923,205.32,0.00022111,10]
[313355386,1707225441136,205.32,0.00022652,10]
[313355387,1707225484835,207.0,0.00022433,2]
[313355388,1707225510036,160.15,0.00020216,2]
[313355389,1707225640637,512.0,0.00022107,2]
[313355390,1707225662470,353.63,0.00022,2]
[313355391,1707225664707,158.41,0.00022236,2]
[313355392,1707225910683,187.96,0.0002212,2]
[313355393,1707225910707,40.2,0.0002212,2]
[313355394,1707226007736,153.99,0.00022085,10]
[313355395,1707226007955,153.99,0.00022806,10]
[313355396,1707226024202,150.0,0.00022,2]
[313355397,1707226119364,160.15,0.00020178,2]
[313355399,1707226186556,538.15,0.00022451,2]
[313355402,1707226234099,-3517.9879,0.000228,2]
[313355403,1707226234109,-1975.9218,0.000228,2]
[313355404,1707226234119,-155.60342239,0.000228,2]
[313355405,1707226234128,-3034.0,0.000228,2]
[313355406,1707226234137,-150.0,0.00022897,2]
[313355407,1707226234147,-300.0,0.00022897,2]
[313355408,1707226234156,-461.35757896,0.00022898,2]
[313355409,1707226234166,-2905.12929665,0.00022899,2]
[313355410,1707226234182,-4581.69219348,0.00022899,2]
[313355411,1707226234193,-3781.70066479,0.00022899,2]
[313355412,1707226234219,-340.1393542,0.00022899,2]
[313355413,1707226234231,-5214.96063354,0.00022899,2]
[313355414,1707226234240,-734.5495,0.000229,2]
[313355415,1707226234249,-2655.85524648,0.000229,2]
[313355416,1707226234333,-312.37220644,0.000229,2]
[313355417,1707226234344,-622.67114989,0.000229,2]
[313355480,1707226237585,-213.32549719,0.000229,2]
[313355481,1707226237596,-16958.09503804,0.000229,2]
[313355482,1707226237668,-33165.81842926,0.000229,2]
[313355483,1707226237682,-781.35085726,0.000229,2]
[313355484,1707226237697,-1955.221034,0.000229,2]
[313355485,1707226237801,-12774.79194144,0.000229,2]
[313355490,1707226237934,-1541.8751,0.000229,2]
[313355492,1707226237967,-1333.0026,0.000229,2]
[313355495,1707226237977,-5000.0,0.000229,2]
[313355497,1707226237986,-222.86235962,0.000229,2]
[313355499,1707226237995,-329.29550486,0.000229,2]
[313355500,1707226238004,-165.47550612,0.000229,2]
[313355502,1707226238013,-1171.05228359,0.000229,2]
[313355504,1707226238022,-320.20280364,0.000229,6]
[313355506,1707226238031,-167.31713559,0.00022998,3]
[313355508,1707226238041,-197.65742886,0.00022998,2]
[313355510,1707226238050,-338.86703874,0.00022998,2]
[313355512,1707226238059,-10219.9449014,0.00022998,2]
[313355514,1707226238068,-1291.4360188,0.00022998,2]
[313355516,1707226238077,-4336.6959209,0.00022998,2]
[313355519,1707226238087,-1720.295064,0.00022998,2]
[313355521,1707226238096,-499.99,0.00022998,2]
[313355523,1707226238105,-24285.6870252,0.00022998,2]
[313355525,1707226238115,-161.59848314,0.00022999,2]
[313355527,1707226238125,-731.46645686,0.00022999,2]
[313355533,1707226238174,-758.3651101,0.00022999,2]
[313355554,1707226240188,-864.14,0.00022999,2]
[313355555,1707226240874,-370.00120197,0.00022999,2]
[313355582,1707226242543,-440.41377552,0.00022999,2]
[313355583,1707226242556,-264.96451937,0.00022999,2]
[313355584,1707226242608,-941.4846283,0.00022999,2]
[313355585,1707226242673,-1028.81422787,0.00022999,2]
[313355586,1707226242684,-189.93928621,0.00022999,2]
[313355587,1707226242694,-414.1989803,0.00022999,2]
[313355588,1707226242705,-331.7902401,0.00022999,2]
[313355589,1707226242715,-161.59848313,0.00022999,2]
[313355590,1707226242729,-541.0,0.00023,2]
[313355591,1707226242739,-1492.06857338,0.00023,3]
[313355592,1707226242752,-9028.19038572,0.00023,3]
[313355593,1707226242778,-1013.89253256,0.00023,3]
[313355594,1707226242794,-3077.6682786,0.00023,3]
[313355595,1707226242806,-1266.5382313,0.00023,3]
[313355596,1707226242853,-1527.69938051,0.00023,3]
[313355597,1707226242866,-34412.53066035,0.00023,3]
[313355728,1707226245511,-171.95773434,0.00022998,2]
[313355730,1707226245522,-400.0,0.00022998,2]
[313355731,1707226245532,-156.93888728,0.00022998,2]
[313355732,1707226245542,-195.67489377,0.00022998,2]
[313355733,1707226245551,-157.85816695,0.00022998,2]
[313355734,1707226245560,-378.41946573,0.00022998,2]
[313355735,1707226245627,-734.90572049,0.00022998,2]
[313355736,1707226245637,-1052.59750047,0.00022998,2]
[313355737,1707226245647,-155.21933331,0.00022998,2]
[313355738,1707226245656,-86.02768715,0.00023,3]
[313355739,1707226245744,-2355.10609958,0.00023,3]
[313355740,1707226245756,-429.444572,0.00023,3]
[313355741,1707226245768,-947.2596898,0.00023,3]
[313355742,1707226245811,-258.08265936,0.00022998,2]
[313355743,1707226245820,-678.370442,0.00023,3]
[313355744,1707226245831,-2416.96942512,0.00023,3]
[313355753,1707226371806,190.13,0.00022417,2]
[313355754,1707226449609,153.99,0.00021904,10]
[313355755,1707226542200,10000.0,0.0002705,120]
[313355756,1707226551272,160.15,0.00019986,2]
[313355757,1707226565522,389.24,0.0002705,120]
[313355758,1707226620129,158.4,0.00022064,2]
[313355759,1707226635222,409.6,0.000219,2]
[313355760,1707226792527,158.44,0.000219,2]
[313355761,1707226976322,160.15,0.00019982,2]
[313355762,1707226996621,153.99,0.000219,10]
[313355763,1707227117450,430.52,0.000219,2]
[313355764,1707227228348,158.44,0.000219,2]
[313355766,1707227414416,196.0,0.0002705,120]
[313355770,1707227431793,-159.76793939,0.00022715,2]
[313355771,1707227431803,-159.76793937,0.00022738,2]
[313355772,1707227431812,-47.98846345,0.0002276,2]
[313355773,1707227431852,-465.90039078,0.0002276,2]
[313355774,1707227431861,-159.76793937,0.00022761,2]
[313355775,1707227431871,-155.0,0.00022768,2]
[313355776,1707227431880,-159.76793937,0.00022784,2]
[313355777,1707227431890,-157.95027663,0.000228,2]
[313355778,1707227431962,-50.04972337,0.000228,2]
[313355779,1707227431971,-5214.88044392,0.000228,2]
[313355780,1707227431982,-4038.56433042,0.000228,2]
[313355799,1707227437746,-3020.66396125,0.000228,2]
[313355802,1707227437862,-0.89126441,0.000228,2]
[313355803,1707227437871,-159.76793937,0.00022808,2]
[313355804,1707227437881,-500.0,0.00022815,2]
[313355805,1707227437892,-500.0,0.00022815,2]
[313355806,1707227437901,-800.0,0.00022815,2]
[313355807,1707227437910,-200.0,0.00022815,2]
[313355808,1707227437919,-500.0,0.00022815,2]
[313355809,1707227437930,-500.0,0.00022815,2]
[313355810,1707227437939,-500.0,0.00022815,2]
[313355811,1707227437948,-500.0,0.00022815,2]
[313355812,1707227437957,-499.99,0.00022815,2]
[313355813,1707227437967,-500.0,0.00022816,2]
[313355814,1707227437976,-500.0,0.00022816,2]
[313355815,1707227437985,-200.0,0.00022816,2]
[313355816,1707227437996,-500.0,0.00022816,2]
[313355817,1707227438006,-2863.65,0.00022816,2]
[313355818,1707227438015,-500.0,0.00022816,2]
[313355819,1707227438024,-500.0,0.00022816,2]
[313355820,1707227438034,-500.0,0.00022816,2]
[313355821,1707227438043,-500.0,0.00022816,2]
[313355822,1707227438052,-500.0,0.00022816,2]
[313355823,1707227438062,-500.0,0.00022816,2]
[313355824,1707227438071,-500.0,0.00022816,2]
[313355825,1707227438080,-500.0,0.00022816,2]
[313355826,1707227438089,-500.0,0.00022816,2]
[313355827,1707227438099,-500.0,0.00022816,2]
[313355829,1707227438108,-500.0,0.00022816,2]
[313355831,1707227438117,-500.0,0.00022816,2]
[313355833,1707227438126,-500.0,0.00022816,2]
[313355835,1707227438135,-500.0,0.00022816,2]
[313355837,1707227438145,-500.0,0.00022816,2]
[313355838,1707227438154,-500.0,0.00022816,2]
[313355839,1707227438163,-800.0,0.00022816,2]
[313355840,1707227438172,-800.0,0.00022816,2]
[313355841,1707227438181,-200.0,0.00022816,2]
[313355842,1707227438192,-200.0,0.00022816,2]
[313355843,1707227438201,-200.0,0.00022816,2]
[313355844,1707227438210,-159.76793937,0.00022831,2]
[313355845,1707227438219,-159.76793937,0.00022854,2]
[313355846,1707227438229,-159.76793937,0.00022877,2]
[313355847,1707227438239,-2590.47116894,0.00022898,2]
[313355848,1707227438250,-199.825732,0.00022899,2]
[313355849,1707227438260,-531.53069026,0.00022899,2]
[313355850,1707227438270,-221.66172776,0.00022899,2]
[313355851,1707227438280,-7327.21783283,0.00022899,2]
[313355852,1707227438290,-1208.9645,0.000229,2]
[313355853,1707227438301,-3687.2749,0.000229,2]
[313355854,1707227438311,-1814.74343733,0.000229,2]
[313355855,1707227438321,-7589.96874587,0.000229,2]
[313355856,1707227438330,-5000.0,0.000229,2]
[313355857,1707227438340,-1126.30347656,0.000229,2]
[313355858,1707227438350,-523.8010228,0.000229,2]